bitfinex-derivatives/quotes_ETHF0:USTF0_20250903
["timestamp","ask_amount","ask_price","bid_price","bid_amount"]
[1756934518413,1.2378217,4472.7,4472.6,4.4818]
[1756934518808,1.4638217,4472.7,4472.6,4.4818]
[1756934521908,0.5475217,4472.7,4472.6,4.4818]
[1756934522113,0.226,4472.7,4472.6,4.4818]
[1756934522509,0.77532258,4472.7,4472.6,4.4818]
[1756934523211,0.7753372,4472.7,4472.6,4.4818]
[1756934523514,0.5493372,4472.7,4472.6,4.4818]
[1756934524213,0.5493372,4472.7,4472.6,5.11006]
[1756934524415,0.226,4473.1,4473.0,0.4577]
[1756934524717,0.77589546,4473.1,4473.0,0.7687]
[1756934525511,0.77589546,4473.1,4473.0,5.7686]
[1756934526514,0.54989546,4473.1,4473.0,6.17082]
[1756934528012,0.226,4473.3,4473.1,0.4022]
[1756934528211,0.5259,4473.3,4473.2,0.7096]
[1756934528518,1.07512985,4473.3,4473.2,0.7096]
[1756934529018,1.07512985,4473.3,4473.2,1.1118]
[1756934529318,0.54922985,4473.3,4473.2,1.1118]
[1756934529618,1.04622985,4473.3,4473.2,0.7096]
[1756934530212,1.23952985,4473.3,4473.2,0.7096]
[1756934530414,1.04622985,4473.3,4473.2,0.7096]
[1756934530619,1.04622985,4473.3,4473.2,1.1118]
[1756934534118,1.04622985,4473.3,4473.2,0.7096]
[1756934537216,1.25302985,4473.3,4473.2,0.7096]
[1756934538224,0.7038,4473.3,4473.2,0.7096]
[1756934538423,1.2518162,4473.3,4473.2,0.7096]
[1756934539619,1.2518162,4473.3,4473.2,0.3986]
[1756934540419,0.2825,4473.2,4473.0,5.2259]
[1756934540624,0.6939,4473.1,4473.0,5.2259]
[1756934540824,0.6939,4473.1,4473.0,4.9999]
[1756934541024,0.6939,4473.1,4473.0,5.1999]
[1756934541526,0.4871,4473.1,4473.0,5.7097]
[1756934544030,0.5085,4473.4,4473.3,0.7098]
[1756934544322,1.05639858,4473.4,4473.3,0.7098]
[1756934544730,1.26099858,4473.4,4473.3,0.7098]
[1756934546434,1.46779858,4473.4,4473.3,0.7098]
[1756934546929,1.46779858,4473.4,4473.3,0.3969]
[1756934547529,0.95929858,4473.4,4473.0,5.3128]
[1756934547728,0.4114,4473.4,4473.3,0.2]
[1756934547926,0.4114,4473.4,4473.3,0.7098]
[1756934548123,1.24170819,4473.4,4473.3,0.7098]
[1756934548823,0.54780819,4473.4,4473.3,0.7098]
[1756934549024,0.54780819,4473.6,4473.3,0.3969]
[1756934549218,0.2825,4473.5,4473.4,0.3129]
[1756934549521,0.2825,4473.5,4473.4,0.7098]
[1756934549522,0.83030819,4473.5,4473.4,0.7098]
[1756934550630,1.03490819,4473.5,4473.4,0.7098]
[1756934551326,1.35730819,4473.5,4473.4,0.7098]
[1756934552423,0.83030819,4473.5,4473.4,0.7098]
[1756934553232,1.03490819,4473.5,4473.4,0.7098]
[1756934553532,1.35730819,4473.5,4473.4,0.7098]
[1756934554933,1.35730819,4473.5,4473.4,0.3969]
[1756934558032,1.35730819,4473.5,4473.4,0.2]
[1756934565240,1.35730819,4473.5,4473.1,0.226]
[1756934565439,0.3924,4473.2,4473.1,0.4346]
[1756934565639,1.23370819,4473.2,4473.1,0.4346]
[1756934568834,0.6859,4473.2,4473.1,0.4346]
[1756934569035,1.23508639,4473.2,4473.1,0.4346]
[1756934578252,1.23508639,4473.2,4473.1,0.226]
[1756934578641,1.23508639,4473.2,4473.1,0.4346]
[1756934578950,1.23508639,4473.2,4473.1,0.9242]
[1756934579649,1.23508639,4473.2,4473.1,0.637]
[1756934580039,1.23508639,4473.2,4473.1,0.9242]
[1756934580448,1.23508639,4473.2,4473.1,0.637]
[1756934580752,1.23508639,4473.2,4473.1,0.4346]
[1756934580946,1.23508639,4473.2,4473.1,0.226]
[1756934582554,1.23508639,4473.2,4473.1,0.4346]
[1756934585859,1.04108639,4473.2,4473.1,0.9242]
[1756934586055,0.4919,4473.2,4473.1,0.9242]
[1756934586951,0.2935,4473.2,4473.1,0.9242]
[1756934587350,0.4919,4473.2,4473.1,0.9242]
[1756934587751,0.4919,4473.2,4473.1,1.32641]
[1756934588260,0.2935,4473.2,4473.1,1.32641]
[1756934588457,0.2935,4473.2,4473.1,0.9242]
[1756934588666,0.4919,4473.2,4473.1,0.9242]
[1756934589462,0.6859,4473.2,4473.1,0.9242]
[1756934600071,0.6859,4473.2,4473.1,0.4346]
[1756934600466,0.6859,4473.2,4473.1,0.226]
[1756934601472,0.6859,4473.2,4473.1,0.4149]
[1756934603374,0.6859,4473.2,4473.1,4.3458]
[1756934603975,0.6859,4473.2,4473.1,4.1569]
[1756934604175,0.6859,4473.2,4473.1,4.55911]
[1756934604675,0.6859,4473.2,4473.1,4.74801]
[1756934605777,0.6859,4473.2,4473.1,4.95421]
[1756934607672,0.6859,4473.2,4473.1,5.25501]
[1756934608376,0.2935,4473.2,4473.1,5.25501]
[1756934613274,0.1156,4473.5,4473.4,0.40219]
[1756934613475,0.4271,4473.5,4473.4,1.09809]
[1756934613673,1.16872907,4473.5,4473.4,1.09809]
[1756934613876,0.54922907,4473.5,4473.4,1.09809]
[1756934614077,0.1924,4473.9,4473.8,1.09805]
[1756934614582,0.5039,4473.9,4473.8,1.09805]
[1756934614880,1.05319403,4473.9,4473.8,1.09805]
[1756934615680,0.704,4473.9,4473.8,1.09805]
[1756934616080,0.704,4473.9,4473.8,0.6959]
[1756934616281,0.704,4473.9,4473.8,1.09805]
[1756934617980,0.704,4473.9,4473.8,0.6959]
[1756934618784,0.704,4473.9,4473.8,1.09805]
[1756934619470,0.704,4473.9,4473.8,2.00965]
[1756934620780,0.704,4473.9,4473.8,1.1005]
[1756934620980,0.704,4473.9,4473.8,0.9116]
[1756934621171,1.2528207,4473.9,4473.8,0.9116]
[1756934624781,1.2528207,4473.9,4473.8,1.1125]
[1756934629092,1.2528207,4473.9,4473.8,1.3162]
[1756934629288,1.2528207,4473.9,4473.8,1.6067]
[1756934629592,1.2528207,4473.9,4473.8,2.00885]
[1756934630193,1.2528207,4473.9,4473.8,1.6067]
[1756934631096,1.2528207,4473.9,4473.8,2.00885]
[1756934632097,1.0527207,4473.9,4473.8,2.00885]
[1756934632291,0.8603207,4473.9,4473.8,2.00885]
[1756934633390,0.3115,4473.9,4473.8,2.00885]
[1756934633796,0.5201,4473.9,4473.8,2.00885]
[1756934635000,0.5201,4473.9,4473.8,1.6067]
[1756934635500,0.717,4473.9,4473.8,1.6067]
[1756934635700,0.717,4473.9,4473.8,2.00885]
[1756934637600,4.63755471,4474.9,4473.8,1.31375]
[1756934637899,0.2871,4473.9,4473.8,2.00885]
[1756934638297,0.83644149,4473.9,4473.8,2.00885]
[1756934639705,0.83644149,4473.9,4473.8,2.00885]
[1756934641408,1.04504149,4473.9,4473.8,2.00885]
[1756934642601,0.1148,4474.5,4474.4,0.4021]
[1756934642796,3.2078,4475.3,4474.9,0.40205]
[1756934643001,0.54947625,4475.2,4474.9,0.40205]
[1756934643197,3.2078,4475.3,4474.9,0.40205]
[1756934644005,3.2078,4475.3,4474.9,3.81875]
[1756934645002,0.54869015,4475.2,4474.9,3.81875]
[1756934645203,3.2078,4475.3,4474.9,3.81875]
[1756934645611,3.2078,4475.3,4474.9,3.4167]
[1756934652118,3.2078,4475.7,4474.9,3.4167]
[1756934652318,0.54768804,4475.6,4474.9,3.4167]
[1756934652619,0.54768804,4475.5,4474.9,3.4167]
[1756934652920,3.2078,4475.7,4474.9,3.4167]
[1756934653121,0.54767668,4475.6,4474.9,3.4167]
[1756934653312,3.2078,4475.7,4474.9,3.4167]
[1756934653517,0.54811043,4475.6,4474.9,3.4167]
[1756934653720,3.4338,4475.7,4474.9,3.4167]
[1756934654020,0.54811066,4475.6,4474.9,3.4167]
[1756934654316,3.4338,4475.7,4474.9,3.4167]
[1756934654524,0.54808294,4475.6,4474.9,3.4167]
[1756934654821,3.4338,4475.7,4474.9,3.4167]
[1756934655019,0.54808296,4475.6,4474.9,3.4167]
[1756934655220,3.4338,4475.7,4474.9,3.4167]
[1756934655425,0.54806739,4475.6,4474.9,3.4167]
[1756934655620,3.4338,4475.7,4474.9,3.4167]
[1756934655821,0.54806737,4475.6,4474.9,3.4167]
[1756934656024,3.4338,4475.7,4474.9,3.4167]
[1756934656322,0.54806719,4475.6,4474.9,3.4167]
[1756934656626,3.4338,4475.7,4474.9,3.4167]
[1756934656813,0.5480624,4475.6,4474.9,3.4167]
[1756934657010,3.4338,4475.7,4474.9,3.4167]
[1756934657215,0.5480624,4475.6,4474.9,3.4167]
[1756934657415,3.4338,4475.7,4474.9,3.4167]
[1756934657622,0.54806999,4475.6,4474.9,3.4167]
[1756934657824,3.2078,4475.7,4474.9,3.4167]
[1756934658024,0.54806435,4475.6,4474.9,3.4167]
[1756934658223,3.4338,4475.7,4474.9,3.4167]
[1756934658416,0.54808402,4475.6,4474.9,3.4167]
[1756934658617,3.4338,4475.7,4474.9,3.4167]
[1756934658818,0.54808402,4475.6,4474.9,3.4167]
[1756934659012,3.4338,4475.7,4474.9,3.4167]
[1756934659219,0.54808399,4475.6,4474.9,3.4167]
[1756934659415,3.4338,4475.7,4474.9,3.4167]
[1756934659625,0.54811836,4475.6,4474.9,3.4167]
[1756934659926,3.4338,4475.7,4474.9,3.4167]
[1756934660125,0.54811914,4475.6,4474.9,3.4167]
[1756934660327,3.4338,4475.7,4474.9,3.4167]
[1756934660628,0.54814927,4475.6,4474.9,3.4167]
[1756934660821,0.226,4475.6,4474.9,3.4167]
[1756934661231,0.54816283,4475.5,4474.9,3.4167]
[1756934661430,0.226,4475.6,4474.9,3.4167]
[1756934661632,0.5481941,4475.5,4474.9,3.4167]
[1756934661831,0.226,4475.6,4474.9,3.4167]
[1756934662033,0.54819411,4475.5,4474.9,3.4167]
[1756934662235,0.226,4475.6,4474.9,3.4167]
[1756934662531,0.54825059,4475.5,4474.9,3.4167]
[1756934662730,0.226,4475.6,4474.9,3.4167]
[1756934662940,0.54825059,4475.5,4474.9,3.4167]
[1756934663141,0.226,4475.6,4474.9,3.4167]
[1756934664241,0.5483444,4475.5,4474.9,3.4167]
[1756934664546,0.226,4475.6,4474.9,3.4167]
[1756934664844,0.54840665,4475.5,4474.9,3.4167]
[1756934665044,0.226,4475.6,4474.9,3.4167]
[1756934665244,0.77185664,4475.5,4474.9,3.4167]
[1756934665546,0.226,4475.6,4474.9,3.4167]
[1756934665737,0.5485069,4475.5,4474.9,3.4167]
[1756934665933,0.44945,4475.6,4474.9,3.4167]
[1756934666246,0.77195692,4475.5,4474.9,3.4167]
[1756934666447,0.54850692,4475.4,4474.9,3.4167]
[1756934666838,0.77350692,4475.3,4474.9,3.4167]
[1756934667040,0.225,4475.3,4474.9,3.4167]
[1756934670242,0.5491842,4475.2,4474.9,3.4167]
[1756934670439,0.225,4475.3,4474.9,3.4167]
[1756934670748,0.5491842,4475.2,4474.9,3.4167]
[1756934670947,0.225,4475.3,4474.9,3.4167]
[1756934671246,0.54918509,4475.2,4474.9,3.4167]
[1756934671546,0.54948633,4475.1,4474.9,3.4167]
[1756934671748,0.225,4475.3,4474.9,3.4167]
[1756934671935,0.54948633,4475.2,4474.9,3.4167]
[1756934672141,0.54948633,4475.1,4474.9,3.4167]
[1756934672336,0.54948633,4475.0,4474.9,3.4167]
[1756934672735,0.54948633,4475.2,4474.9,3.4167]
[1756934672935,0.54948633,4475.1,4474.9,3.4167]
[1756934673147,0.54948633,4475.0,4474.9,3.4167]
[1756934673546,0.54948633,4475.2,4474.9,3.4167]
[1756934673847,0.54948633,4475.1,4474.9,3.4167]
[1756934674048,0.54948633,4475.0,4474.9,3.4167]
[1756934674250,0.54948633,4475.2,4474.9,3.4167]
[1756934679256,0.225,4475.3,4474.9,3.4167]
[1756934679454,0.55009606,4475.2,4474.9,3.4167]
[1756934679655,0.55009606,4475.1,4474.9,3.4167]
[1756934679955,0.55009606,4475.0,4474.9,3.4167]
[1756934686965,0.225,4475.3,4474.9,3.4167]
[1756934687161,0.54858701,4475.2,4474.9,3.4167]
[1756934687361,0.54858701,4475.1,4474.9,3.4167]
[1756934687661,0.54858701,4475.0,4474.9,3.4167]
[1756934702870,8.68515701,4475.0,4474.9,3.2217]
[1756934703067,8.68515701,4475.0,4474.9,2.921]
[1756934704167,8.86800086,4475.0,4474.9,2.921]
[1756934704363,8.86800086,4475.0,4474.4,0.3007]
[1756934704564,3.9131,4474.5,4474.4,0.3007]
[1756934704770,4.86953086,4474.5,4474.4,0.3007]
[1756934705972,0.7053,4474.2,4474.1,4.7095]
[1756934706275,1.43673086,4474.2,4474.1,4.7095]
[1756934706465,1.43673086,4474.2,4474.1,4.5042]
[1756934706665,2.64194847,4474.2,4474.1,4.8049]
[1756934707076,1.43673086,4474.2,4474.1,4.8049]
[1756934707373,1.43673086,4474.2,4474.1,0.3007]
[1756934709875,1.43673086,4474.2,4474.1,0.506]
[1756934711180,1.43673086,4474.2,4474.1,0.7088]
[1756934711374,1.13613086,4474.2,4474.1,0.7088]
[1756934711980,0.95643086,4474.2,4474.1,0.7088]
[1756934712478,1.14553086,4474.2,4474.1,0.7088]
[1756934715287,0.73143086,4474.2,4474.1,0.702]
[1756934715579,0.73143086,4474.2,4474.1,4.702]
[1756934715774,0.95643086,4474.2,4474.1,4.702]
[1756934717278,0.95643086,4474.2,4474.1,5.7019]
[1756934719884,0.73143086,4474.2,4474.1,9.7019]
[1756934720085,0.18284385,4474.2,4474.1,9.7019]
[1756934725881,0.18284385,4474.2,4474.1,5.7019]
[1756934733598,0.37194385,4474.2,4474.1,5.7019]
[1756934734099,0.18284385,4474.2,4474.1,5.7019]
[1756934742495,0.225,4474.7,4474.6,0.3944]
[1756934742697,0.98463458,4474.7,4474.6,0.6984]
[1756934744997,0.4259,4474.7,4474.6,0.6984]
[1756934745698,3.2078,4474.8,4474.6,0.3944]
[1756934745893,3.4087,4474.8,4474.7,0.6984]
[1756934746097,4.1930505,4474.8,4474.7,0.6984]
[1756934746906,3.9680505,4474.8,4474.7,0.6984]
[1756934747210,4.1930505,4474.8,4474.7,0.6984]
[1756934748307,4.3834505,4474.8,4474.7,0.6984]
[1756934748708,4.6679505,4474.8,4474.7,0.6984]
[1756934764612,4.6679505,4474.8,4474.7,0.4939]
[1756934769018,3.9921505,4474.8,4474.7,0.6984]
[1756934769213,4.1930505,4474.8,4474.7,0.6984]
[1756934769411,4.6679505,4474.8,4474.7,0.6984]
[1756934770316,4.3834505,4474.8,4474.7,0.6984]
[1756934773011,3.7671505,4474.8,4474.7,0.6984]
[1756934773211,3.2078,4475.6,4474.7,8.12967999]
[1756934773419,0.4229,4475.5,4475.4,0.6744]
[1756934773716,0.6148,4475.5,4475.4,0.6744]
[1756934773919,0.9202,4475.5,4475.4,0.6744]
[1756934778812,0.6148,4475.5,4475.4,0.6744]
[1756934779014,0.9202,4475.5,4475.4,0.6744]
[1756934779920,0.1979,4475.5,4475.4,0.6744]
[1756934780120,0.4229,4475.5,4475.4,0.6744]
[1756934783823,0.225,4475.5,4475.4,0.6744]
[1756934784122,0.4229,4475.5,4475.4,0.6744]
[1756934785112,0.7536424,4475.5,4475.4,0.6744]
[1756934785417,0.9786424,4475.5,4475.4,0.6744]
[1756934786225,0.7536424,4475.5,4475.4,0.6744]
[1756934786526,0.9786424,4475.5,4475.4,0.6744]
[1756934787024,1.4759424,4475.5,4475.4,0.6744]
[1756934792227,1.4759424,4475.5,4475.4,0.4787]
[1756934792525,1.4759424,4475.5,4475.4,0.2872]
[1756934793428,0.3898,4475.0,4474.9,0.2872]
[1756934793625,0.9202,4475.0,4474.9,0.4787]
[1756934793834,0.9202,4475.0,4474.9,0.6744]
[1756934794128,0.6148,4475.0,4474.9,0.6744]
[1756934797339,1.17119279,4475.0,4474.9,0.6744]
[1756934797638,1.47659279,4475.0,4474.9,0.6744]
[1756934800238,1.47659279,4475.0,4474.9,0.4787]
[1756934802337,1.17119279,4475.0,4474.9,0.6744]
[1756934804137,0.55639279,4475.0,4474.9,0.6744]
[1756934804333,0.75929279,4475.0,4474.9,0.6744]
[1756934804836,0.55639279,4475.0,4474.9,0.6744]
[1756934811443,0.75929279,4475.0,4474.9,0.6744]
[1756934811644,0.95259279,4475.0,4474.9,0.6744]
[1756934811838,0.75929279,4475.0,4474.9,0.6744]
[1756934813436,0.2029,4475.0,4474.9,0.6744]
[1756934814447,0.7033,4475.0,4474.9,0.6744]
[1756934816135,1.25960662,4475.0,4474.9,0.4787]
[1756934816335,1.25960662,4475.0,4474.9,0.2872]
[1756934818546,0.3962,4474.7,4474.5,3.3256]
[1756934818751,0.3962,4474.7,4474.6,0.5017]
[1756934818949,0.3962,4474.7,4474.6,0.6906]
[1756934819250,0.7033,4474.7,4474.6,0.6906]
[1756934820247,0.3962,4474.7,4474.6,0.6906]
[1756934820452,0.3071,4475.1,4474.6,0.3846]
[1756934820645,0.7033,4475.1,4475.0,0.3209]
[1756934820851,1.25963868,4475.1,4475.0,0.6269]
[1756934822447,1.25963868,4475.1,4475.0,0.5017]
[1756934823154,1.25963868,4475.1,4475.0,0.8158]
[1756934823362,0.95253868,4475.1,4475.0,0.8158]
[1756934824047,1.25963868,4475.1,4475.0,0.8158]
[1756934831563,0.95253868,4475.1,4475.0,0.8158]
[1756934833559,1.25993868,4475.1,4475.0,0.8158]
[1756934834762,1.25993868,4475.1,4475.0,0.5017]
[1756934845567,1.25993868,4475.1,4475.0,0.622]
[1756934847369,1.25993868,4475.1,4475.0,0.8101]
[1756934847667,0.95253868,4475.1,4475.0,0.8101]
[1756934859985,1.25993868,4475.1,4475.0,0.622]
[1756934864991,1.25993868,4475.1,4475.0,0.306]
[1756934876592,0.2991,4475.0,4474.8,0.2939]
[1756934876787,0.95213868,4474.9,4474.8,0.2939]
[1756934876993,0.95213868,4474.9,4474.8,0.6974]
[1756934877497,1.25123868,4474.9,4474.8,0.6974]
[1756934881302,1.25123868,4474.9,4474.8,0.2939]
[1756934881494,1.25123868,4474.9,4474.8,0.4937]
[1756934884903,0.74893868,4474.9,4474.8,0.6974]
[1756934885502,0.95213868,4474.9,4474.8,0.6974]
[1756934890805,0.55633868,4474.9,4474.8,0.6974]
[1756934891006,0.55633868,4474.9,4474.8,0.4035]
[1756934891309,0.55633868,4475.2,4474.8,0.4035]
[1756934891507,0.95213868,4475.1,4475.0,0.5178]
[1756934891813,0.95213868,4475.1,4475.0,0.8203]
[1756934892612,1.25563868,4475.1,4475.0,0.8203]
[1756934908830,0.95213868,4475.1,4475.0,0.8203]
[1756934909432,1.25563868,4475.1,4475.0,0.8203]
[1756934910837,0.95213868,4475.1,4475.0,0.8203]
[1756934911038,0.55633868,4475.1,4475.0,0.8203]
[1756934911226,0.55633868,4475.1,4475.0,0.5178]
[1756934911431,0.75993794,4475.3,4475.2,0.6958]
[1756934911642,0.96213794,4475.3,4475.2,0.6958]
[1756934912138,1.26563794,4475.3,4475.2,0.6958]
[1756934918641,1.26563794,4475.3,4475.2,0.504]
[1756934929346,1.26563794,4475.3,4475.2,0.6995]
[1756934929550,0.55643794,4475.3,4475.2,0.92295]
[1756934929741,0.55643794,4475.3,4475.2,0.6995]
[1756934934249,0.55643794,4475.3,4475.2,1.72905451]
[1756934943358,0.55643794,4475.3,4475.2,0.6995]
[1756934944958,0.75183794,4475.3,4475.2,0.6995]
[1756934952160,0.75210477,4475.3,4475.2,0.6995]
[1756934960862,0.55670477,4475.3,4475.2,0.6995]
[1756934961063,0.75960477,4475.3,4475.2,0.6995]
[1756934964563,0.55670477,4475.3,4475.2,0.6995]
[1756934964764,0.55670477,4475.3,4475.2,3.9073]
[1756934967264,0.2994,4476.0,4475.3,0.292]
[1756934967464,0.95368389,4475.9,4475.8,0.1937]
[1756934967666,1.25308389,4475.9,4475.8,0.4857]
[1756934968165,1.25308389,4475.9,4475.8,0.292]
[1756934971269,1.47808389,4475.9,4475.8,0.292]
[1756934974470,1.47808389,4475.9,4475.2,3.2078]
[1756934974775,0.6973,4475.3,4475.2,3.2078]
[1756934974974,0.2029,4474.8,4474.7,1.71265451]
[1756934979477,0.2029,4474.8,4474.7,0.6831]
[1756934979972,0.6973,4474.8,4474.7,0.4857]
[1756934981874,0.6973,4474.8,4474.7,0.6831]
[1756934982372,0.3979,4474.8,4474.7,0.6831]
[1756934984278,0.6899,4474.8,4474.7,0.292]
[1756934984481,1.24643075,4474.8,4474.7,0.292]
[1756934987283,1.24643075,4474.8,4474.7,0.4977]
[1756934988186,1.24643075,4474.8,4474.7,0.292]
[1756934988382,1.47143075,4474.8,4474.7,0.292]
[1756934989181,0.3903,4474.3,4474.2,0.309]
[1756934989382,1.23855768,4474.3,4474.2,0.5147]
[1756934989777,0.94655768,4474.3,4474.2,0.7035]
[1756934990884,0.55625768,4474.3,4474.2,0.7035]
[1756934991285,0.75655768,4474.3,4474.2,0.7035]
[1756934991688,0.55625768,4474.3,4474.2,0.7035]
[1756934991885,0.75655768,4474.3,4474.2,0.7035]
[1756934992082,0.75655768,4474.3,4474.2,1.9477]
[1756934993188,0.2003,4474.3,4474.2,1.9477]
[1756934997089,0.38672371,4474.3,4474.2,1.9477]
[1756935002288,0.18642371,4474.3,4474.2,1.9477]
[1756935003586,0.18642371,4474.3,4474.2,3.40689656]
[1756935003787,3.2078,4475.2,4475.1,0.7035]
[1756935005189,0.224,4475.7,4475.5,0.121]
[1756935005386,0.75597106,4475.6,4475.5,0.8245]
[1756935005788,0.55567106,4475.6,4475.5,0.8245]
[1756935006093,3.2078,4475.8,4475.6,0.309]
[1756935006094,3.4318,4475.8,4475.6,0.309]
[1756935006293,0.55565936,4475.7,4475.6,0.7035]
[1756935007195,0.75595936,4475.7,4475.6,0.7035]
[1756935007488,1.23795936,4475.7,4475.6,0.7035]
[1756935011499,0.6823,4475.7,4475.6,0.7035]
[1756935014094,0.6823,4475.7,4475.1,3.2078]
[1756935014298,0.7005,4475.2,4475.1,3.2078]
[1756935014597,0.9245,4475.2,4475.1,3.402]
[1756935014796,0.9245,4475.2,4475.1,3.7146]
[1756935016395,0.9245,4475.2,4475.1,3.9185]
[1756935016701,0.9245,4475.2,4475.1,0.7107]
[1756935017199,0.6303,4475.2,4475.1,0.7107]
[1756935017600,0.9245,4475.2,4475.1,0.7107]
[1756935020804,0.6303,4475.2,4475.1,0.7107]
[1756935024004,0.4269,4475.2,4475.1,0.7107]
[1756935024712,0.224,4475.2,4475.1,0.7107]
[1756935025713,0.4269,4475.2,4475.1,0.7107]
[1756935026109,0.224,4475.2,4475.1,0.7107]
[1756935026412,0.7005,4475.6,4475.5,0.8283]
[1756935026611,1.48059359,4475.6,4475.5,0.8283]
[1756935028821,0.78009359,4475.6,4475.5,0.8283]
[1756935029215,0.98299359,4475.6,4475.5,0.8283]
[1756935031826,0.98349376,4475.6,4475.5,0.8283]
[1756935035916,1.48109376,4475.6,4475.5,0.8283]
[1756935044623,1.18689376,4475.6,4475.5,0.8283]
[1756935051433,0.98349376,4475.6,4475.5,0.8283]
[1756935052236,0.75949376,4475.6,4475.5,0.8283]
[1756935052431,0.98349376,4475.6,4475.5,0.8283]
[1756935054435,1.17869376,4475.6,4475.5,0.8283]
[1756935054838,1.47669376,4475.6,4475.5,0.8283]
[1756935056038,0.95469376,4475.6,4475.5,0.8283]
[1756935056232,0.98349376,4475.6,4475.5,0.8283]
[1756935058738,0.75949376,4475.6,4475.5,0.8283]
[1756935058939,0.98349376,4475.6,4475.5,0.8283]
[1756935061841,1.17869376,4475.6,4475.5,0.8283]
[1756935072045,1.46999376,4475.6,4475.5,0.8283]
[1756935072243,1.69343376,4475.6,4475.0,0.121]
[1756935072441,0.6985,4475.0,4474.9,3.9346]
[1756935072640,1.25509376,4475.0,4474.9,4.1414]
[1756935073942,1.25509376,4475.0,4474.9,3.9346]
[1756935074346,1.58066376,4475.0,4474.9,3.6344]
[1756935074746,1.35719376,4475.0,4474.9,3.6344]
[1756935075050,1.58066376,4475.0,4474.9,3.6344]
[1756935075748,1.35719376,4475.0,4474.9,3.6344]
[1756935076148,0.4072,4474.7,4474.6,3.508]
[1756935076349,0.9225,4474.7,4474.6,0.3002]
[1756935076545,1.47909376,4474.7,4474.6,5.3001]
[1756935077450,5.70257376,4474.7,4474.6,4.9999]
[1756935077642,6.90831193,4474.7,4474.6,4.9999]
[1756935078239,0.6985,4474.2,4474.1,3.2078]
[1756935078444,0.6985,4474.2,4473.8,0.3002]
[1756935078445,2.21742568,4474.2,4473.8,4.9999]
[1756935078746,0.4072,4473.7,4473.6,3.2078]
[1756935078945,1.47909376,4473.7,4473.6,3.2078]
[1756935079150,1.47909376,4473.7,4473.6,8.2077]
[1756935080243,1.47909376,4473.7,4473.6,3.2078]
[1756935081046,1.47909376,4473.7,4473.0,4.9999]
[1756935081047,0.4072,4473.1,4473.0,4.9999]
[1756935081344,2.50872568,4473.1,4473.0,4.9999]
[1756935083549,1.95213192,4473.1,4473.0,4.9999]
[1756935083953,1.95213192,4473.1,4472.0,0.121]
[1756935083954,9.7171251,4473.1,4472.5,0.3002]
[1756935084156,4.93593192,4472.6,4472.5,0.3002]
[1756935084356,5.15993192,4472.6,4472.5,0.3002]
[1756935086650,4.86863192,4472.6,4472.1,0.3002]
[1756935086852,0.6985,4472.1,4472.0,4.9999]
[1756935087045,0.9225,4472.1,4472.0,4.9999]
[1756935087650,0.9225,4472.1,4472.0,0.3002]
[1756935087952,0.9225,4472.1,4471.6,0.3002]
[1756935088146,0.9225,4472.1,4471.4,3.2078]
[1756935088352,1.72813192,4471.7,4471.6,0.507]
[1756935088655,1.95213192,4471.7,4471.6,0.507]
[1756935098168,1.95213192,4471.7,4471.6,0.7114]
[1756935099364,1.95213192,4471.7,4471.6,0.507]
[1756935099565,0.4072,4471.5,4471.4,0.3002]
[1756935099765,0.6985,4471.5,4471.4,0.3002]
[1756935100067,0.6985,4471.5,4471.4,0.507]
[1756935100267,0.4072,4471.5,4471.4,0.7114]
[1756935100467,0.4286,4471.5,4471.4,0.7114]
[1756935100969,0.9225,4471.5,4471.4,0.7114]
[1756935101560,0.9225,4471.5,4471.3,4.9999]
[1756935101766,1.72813192,4471.4,4471.3,5.3001]
[1756935102466,1.72813192,4471.4,4471.1,0.3007]
[1756935102660,4.91743192,4471.2,4470.7,4.9999]
[1756935102867,1.70963192,4470.8,4470.7,4.9999]
[1756935103563,1.9184343,4470.8,4470.7,5.3006]
[1756935103867,2.47419352,4470.8,4470.7,0.3007]
[1756935104572,2.69819352,4470.8,4470.7,0.5087]
[1756935104968,2.69819352,4470.8,4470.2,4.9999]
[1756935105163,4.66755922,4470.7,4470.6,0.5087]
[1756935107471,4.66755922,4470.7,4470.6,0.3007]
[1756935110667,4.37815922,4470.7,4470.1,0.3007]
[1756935110864,4.37815922,4470.7,4470.0,5.1209]
[1756935110865,1.9184343,4470.3,4470.2,0.208]
[1756935111063,2.69819352,4470.3,4470.2,0.5087]
[1756935114283,2.69819352,4470.3,4470.2,0.3007]
[1756935118182,2.40879352,4470.3,4469.7,5.3006]
[1756935118387,3.8878,4469.8,4469.7,5.5086]
[1756935118584,4.66755922,4469.8,4469.7,5.3006]
[1756935118980,4.66755922,4469.8,4469.7,4.9999]
[1756935119180,4.66755922,4469.8,4469.7,5.3006]
[1756935120089,4.66755922,4469.8,4469.7,4.9999]
[1756935120390,4.66755922,4469.8,4469.1,0.3007]
[1756935120687,0.68,4469.4,4469.3,5.5086]
[1756935120889,1.45975922,4469.4,4469.3,5.5086]
[1756935124090,1.45975922,4469.4,4469.3,5.3006]
[1756935124291,1.45975922,4469.4,4469.3,4.9999]
[1756935125197,1.45975922,4469.4,4469.3,4.2541258]
[1756935125592,0.94635922,4469.4,4469.3,4.9683258]
[1756935125898,0.78075922,4469.4,4469.3,4.9683258]
[1756935126091,0.78075922,4469.4,4469.3,0.7142]
[1756935129696,0.78075922,4469.4,4469.2,0.5087]
[1756935129697,0.4781,4469.3,4469.2,0.5087]
[1756935129903,5.64416268,4469.3,4469.2,0.5087]
[1756935130301,5.64416268,4469.3,4469.2,0.3007]
[1756935130497,0.68,4469.0,4468.9,5.3006]
[1756935130698,1.17135922,4469.0,4468.9,5.7141]
[1756935130901,1.17135922,4469.0,4468.9,0.7142]
[1756935131101,1.46075922,4469.0,4468.9,0.7142]
[1756935132098,1.46075922,4469.0,4468.9,0.3007]
[1756935132599,1.46075922,4469.0,4468.3,0.3037]